[Event "Vienna Chess Open 2019"]
[Site "Vienna"]
[Date "2019.08.18"]
[Round "3.9"]
[White "Gumularz, Szymon"]
[Black "Pieper, Thomas"]
[Result "1/2-1/2"]
[ECO "B20"]
[WhiteElo "2501"]
[BlackElo "2234"]
[Annotator "ChessBase"]
[PlyCount "47"]
[EventDate "2019.08.17"]
[EventType "swiss"]
[EventCountry "AUT"]
[SourceTitle "playchess.com"]
[Source "ChessBase"]
[SourceQuality "1"]
[TimeControl "40/5400+30:1800+30"]

1. e4 {[%emt 0:00:00]} c5 {[%emt 0:00:00]} 2. Ne2 {[%emt 0:00:00]} d6 {[%emt 0:00:00]} 3. g3 {[%emt 0:00:00]} Nc6 {[%emt 0:00:56]} 4. Bg2 {[%emt 0:00:04]} g6 {[%emt 0:02:11]} 5. c3 {[%emt 0:00:07]} Bg7 {[%emt 0:01:57]} 6. d4 {[%emt 0:00:06]} Qb6 {[%emt 0:07:00]} 7. d5 {[%emt 0:05:10]} Nb8 {[%emt 0:04:51]} 8. O-O {[%emt 0:00:54]} Nf6 {[%emt 0:02:08]} 9. c4 {[%emt 0:12:15]} O-O {[%emt 0:02:21]} 10. Nbc3 {[%emt 0:00:05]} Re8 {[%emt 0:08:41]} 11. h3 {[%emt 0:08:45]} e6 {[%emt 0:01:23]} 12. b3 {[%emt 0:05:32]} exd5 {[%emt 0:00:35]} 13. exd5 {[%emt 0:00:04]} h5 {[%emt 0:17:57]} 14. Be3 {[%emt 0:03:25]} Bf5 {[%emt 0:03:30]} 15. Rc1 {[%emt 0:03:15]} Nbd7 {[%emt 0:05:42]} 16. Qd2 {[%emt 0:04:54]} Ne5 {[%emt 0:03:19]} 17. f3 {[%emt 0:04:59]} Bd3 {[%emt 0:16:28]} 18. f4 {[%emt 0:02:59]} Bxe2 {[%emt 0:01:44]} 19. Nxe2 {[%emt 0:01:10]} Ned7 {[%emt 0:00:11]} 20. Qd3 {[%emt 0:07:35]} Re7 {[%emt 0:00:54]} 21. Bf2 {[%emt 0:00:27]} Rae8 {[%emt 0:00:20]} 22. Nc3 {[%emt 0:00:19]} Qd8 {[%emt 0:05:48]} 23. Bf3 {[%emt 0:04:05]} Bh6 {[%emt 0:00:38]} 24. h4 {[%emt 0:07:41]} 1/2-1/2

[Event "Vienna Chess Open 2019"]
[Site "Vienna"]
[Date "2019.08.18"]
[Round "3.9"]
[White "Janik, Igor"]
[Black "Akesson, Ralf"]
[Result "0-1"]
[ECO "E10"]
[WhiteElo "2483"]
[BlackElo "2348"]
[Annotator "ChessBase"]
[PlyCount "56"]
[EventDate "2019.08.17"]
[EventType "swiss"]
[EventCountry "AUT"]
[SourceTitle "playchess.com"]
[Source "ChessBase"]
[SourceQuality "1"]
[TimeControl "40/5400+30:1800+30"]

1. d4 {[%emt 0:00:00]} Nf6 {[%emt 0:02:05]} 2. c4 {[%emt 0:00:00]} e6 {[%emt 0:00:09]} 3. Nf3 {[%emt 0:00:00]} d5 {[%emt 0:00:41]} 4. g3 {[%emt 0:00:00]} Bb4+ {[%emt 0:00:22]} 5. Nbd2 {[%emt 0:00:02]} dxc4 {[%emt 0:02:34]} 6. Bg2 {[%emt 0:00:10]} b5 {[%emt 0:08:29]} 7. O-O {[%emt 0:00:12]} a5 {[%emt 0:04:34]} 8. a3 {[%emt 0:03:49]} Bxd2 {[%emt 0:03:43]} 9. Bxd2 {[%emt 0:03:33]} Bb7 {[%emt 0:02:49]} 10. b3 {[%emt 0:01:53]} Nbd7 {[%emt 0:02:04]} 11. a4 {[%emt 0:03:53]} cxb3 {[%emt 0:01:59]} 12. axb5 {[%emt 0:02:29]} a4 {[%emt 0:01:11]} 13. Bb4 {[%emt 0:01:04]} Qb8 {[%emt 0:08:36]} 14. Ba3 {[%emt 0:22:10]} Be4 {[%emt 0:06:01]} 15. d5 {[%emt 0:00:28]} Bxd5 {[%emt 0:03:41]} 16. Nd4 {[%emt 0:00:48]} Bxg2 {[%emt 0:02:22]} 17. Kxg2 {[%emt 0:01:07]} e5 {[%emt 0:07:36]} 18. Nf5 {[%emt 0:00:39]} g6 {[%emt 0:00:55]} 19. Ng7+ {[%emt 0:04:30]} Kd8 {[%emt 0:00:08]} 20. Qd3 {[%emt 0:02:39]} Qb7+ {[%emt 0:03:03]} 21. f3 {[%emt 0:00:09]} Rg8 {[%emt 0:01:58]} 22. Rac1 {[%emt 0:01:29]} Rxg7 {[%emt 0:06:32]} 23. Rc6 {[%emt 0:03:07]} Rb8 {[%emt 0:04:25]} 24. Rxf6 {[%emt 0:00:31]} Qxb5 {[%emt 0:00:11]} 25. Qd2 {[%emt 0:00:05]} Kc8 {[%emt 0:01:52]} 26. Qh6 {[%emt 0:00:27]} Nxf6 {[%emt 0:02:29]} 27. Qxg7 {[%emt 0:00:05]} Rb6 {[%emt 0:01:20]} 28. Qxf7 {[%emt 0:00:07]} b2 {[%emt 0:02:07]} 0-1

[Event "Vienna Chess Open 2019"]
[Site "Vienna"]
[Date "2019.08.18"]
[Round "3.10"]
[White "Yankelevich, Lev"]
[Black "Tryggestad, Andreas Garberg"]
[Result "1-0"]
[ECO "A00"]
[WhiteElo "2480"]
[BlackElo "2343"]
[Annotator "ChessBase"]
[PlyCount "72"]
[EventDate "2019.08.17"]
[EventType "swiss"]
[EventCountry "AUT"]
[SourceTitle "playchess.com"]
[Source "ChessBase"]
[SourceQuality "1"]
[TimeControl "40/5400+30:1800+30"]

1. g3 {[%emt 0:00:00]} Nf6 {[%emt 0:02:13]} 2. Bg2 {[%emt 0:00:00]} d5 {[%emt 0:00:09]} 3. Nf3 {[%emt 0:00:46]} g6 {[%emt 0:00:04]} 4. b3 {[%emt 0:00:11]} Bg7 {[%emt 0:00:06]} 5. Bb2 {[%emt 0:00:03]} O-O {[%emt 0:00:05]} 6. O-O {[%emt 0:00:08]} c6 {[%emt 0:00:11]} 7. c4 {[%emt 0:01:01]} a5 {[%emt 0:00:04]} 8. d4 {[%emt 0:00:59]} Bf5 {[%emt 0:06:21]} 9. Nfd2 {[%emt 0:08:07]} a4 {[%emt 0:21:29]} 10. bxa4 {[%emt 0:00:02]} dxc4 {[%emt 0:02:59]} 11. Nxc4 {[%emt 0:01:22]} Be4 {[%emt 0:00:35]} 12. Qb3 {[%emt 0:20:03]} Bxg2 {[%emt 0:09:15]} 13. Kxg2 {[%emt 0:00:04]} Na6 {[%emt 0:00:10]} 14. Rd1 {[%emt 0:03:46]} Nd5 {[%emt 0:20:56]} 15. Nbd2 {[%emt 0:02:30]} Rb8 {[%emt 0:07:53]} 16. Nf3 {[%emt 0:00:39]} Qc7 {[%emt 0:02:35]} 17. Rac1 {[%emt 0:00:29]} Rfd8 {[%emt 0:03:36]} 18. Nce5 {[%emt 0:00:55]} e6 {[%emt 0:00:17]} 19. e4 {[%emt 0:04:36]} Nf6 {[%emt 0:00:05]} 20. Ng5 {[%emt 0:00:03]} Rf8 {[%emt 0:01:03]} 21. Ba3 {[%emt 0:00:05]} c5 {[%emt 0:00:05]} 22. Bxc5 {[%emt 0:00:53]} Nxc5 {[%emt 0:00:11]} 23. Rxc5 {[%emt 0:00:02]} Qe7 {[%emt 0:00:10]} 24. Qb6 {[%emt 0:03:07]} Nd7 {[%emt 0:01:30]} 25. Nxd7 {[%emt 0:00:56]} Qxd7 {[%emt 0:00:02]} 26. Qb5 {[%emt 0:00:13]} Qd6 {[%emt 0:00:17]} 27. e5 {[%emt 0:00:54]} Qe7 {[%emt 0:00:28]} 28. Ne4 {[%emt 0:00:18]} Rfd8 {[%emt 0:00:39]} 29. Nd6 {[%emt 0:03:34]} b6 {[%emt 0:04:34]} 30. Rc6 {[%emt 0:00:12]} Qa7 {[%emt 0:00:08]} 31. Rdc1 {[%emt 0:00:32]} Bf8 {[%emt 0:00:33]} 32. d5 {[%emt 0:02:01]} Bxd6 {[%emt 0:02:17]} 33. Rxd6 {[%emt 0:00:18]} exd5 {[%emt 0:00:34]} 34. Qxd5 {[%emt 0:00:25]} Qe7 {[%emt 0:02:03]} 35. Rcc6 {[%emt 0:00:50]} Rxd6 {[%emt 0:02:20]} 36. exd6 {[%emt 0:00:10]} Qe6 {[%emt 0:00:31]} 1-0

[Event "Vienna Chess Open 2019"]
[Site "Vienna"]
[Date "2019.08.18"]
[Round "3.10"]
[White "Losonczi, Marcell"]
[Black "Valsecchi, Alessio"]
[Result "0-1"]
[ECO "C88"]
[WhiteElo "2276"]
[BlackElo "2494"]
[Annotator "ChessBase"]
[PlyCount "60"]
[EventDate "2019.08.17"]
[EventType "swiss"]
[EventCountry "AUT"]
[SourceTitle "playchess.com"]
[Source "ChessBase"]
[SourceQuality "1"]
[TimeControl "40/5400+30:1800+30"]

1. e4 {[%emt 0:00:00]} e5 {[%emt 0:00:44]} 2. Nf3 {[%emt 0:00:00]} Nc6 {[%emt 0:00:05]} 3. Bb5 {[%emt 0:00:00]} a6 {[%emt 0:00:07]} 4. Ba4 {[%emt 0:00:00]} Nf6 {[%emt 0:00:07]} 5. O-O {[%emt 0:00:11]} Be7 {[%emt 0:00:19]} 6. Re1 {[%emt 0:00:12]} b5 {[%emt 0:00:07]} 7. Bb3 {[%emt 0:00:16]} O-O {[%emt 0:00:18]} 8. a4 {[%emt 0:00:27]} b4 {[%emt 0:00:22]} 9. d3 {[%emt 0:00:19]} d6 {[%emt 0:00:12]} 10. Nbd2 {[%emt 0:00:13]} Na5 {[%emt 0:00:33]} 11. Ba2 {[%emt 0:01:31]} c5 {[%emt 0:00:09]} 12. Nc4 {[%emt 0:01:43]} Nc6 {[%emt 0:00:09]} 13. c3 {[%emt 0:03:22]} Rb8 {[%emt 0:02:07]} 14. Ne3 {[%emt 0:18:06]} Be6 {[%emt 0:02:45]} 15. Nd5 {[%emt 0:07:10]} Bxd5 {[%emt 0:02:18]} 16. Bxd5 {[%emt 0:00:23]} Nxd5 {[%emt 0:00:23]} 17. exd5 {[%emt 0:00:07]} Na5 {[%emt 0:00:35]} 18. d4 {[%emt 0:05:05]} exd4 {[%emt 0:02:59]} 19. cxd4 {[%emt 0:01:04]} c4 {[%emt 0:00:17]} 20. Nd2 {[%emt 0:09:35]} Re8 {[%emt 0:01:20]} 21. Ne4 {[%emt 0:01:09]} Nb3 {[%emt 0:08:59]} 22. Rb1 {[%emt 0:01:14]} Qa5 {[%emt 0:01:08]} 23. Qh5 {[%emt 0:10:05]} g6 {[%emt 0:00:53]} 24. Qf3 {[%emt 0:02:30]} f5 {[%emt 0:07:12]} 25. Ng3 {[%emt 0:14:20]} Nxd4 {[%emt 0:00:41]} 26. Qd1 {[%emt 0:01:58]} Bf6 {[%emt 0:01:13]} 27. Be3 {[%emt 0:00:50]} Qxd5 {[%emt 0:01:35]} 28. Qd2 {[%emt 0:02:36]} c3 {[%emt 0:01:00]} 29. bxc3 {[%emt 0:00:05]} bxc3 {[%emt 0:00:06]} 30. Rxb8 {[%emt 0:00:04]} Rxb8 {[%emt 0:00:18]} 0-1

[Event "Vienna Chess Open 2019"]
[Site "Vienna"]
[Date "2019.08.19"]
[Round "4.1"]
[White "Palac, Mladen"]
[Black "Valmana Canto, Jaime"]
[Result "1-0"]
[ECO "C11"]
[WhiteElo "2551"]
[BlackElo "2406"]
[Annotator "ChessBase"]
[PlyCount "59"]
[EventDate "2019.08.17"]
[EventType "swiss"]
[EventCountry "AUT"]
[SourceTitle "playchess.com"]
[Source "ChessBase"]
[SourceQuality "1"]
[TimeControl "40/5400+30:1800+30"]

1. e4 {[%emt 0:06:35]} e6 {[%emt 0:00:00]} 2. d4 {[%emt 0:00:17]} d5 {[%emt 0:00:00]} 3. Nc3 {[%emt 0:00:04]} Nf6 {[%emt 0:00:00]} 4. e5 {[%emt 0:00:24]} Nfd7 {[%emt 0:00:05]} 5. f4 {[%emt 0:00:04]} c5 {[%emt 0:00:06]} 6. Nf3 {[%emt 0:00:01]} Nc6 {[%emt 0:00:07]} 7. Be3 {[%emt 0:00:03]} Be7 {[%emt 0:00:30]} 8. Qd2 {[%emt 0:00:19]} O-O {[%emt 0:00:11]} 9. dxc5 {[%emt 0:00:07]} Qa5 {[%emt 0:00:09]} 10. Nd4 {[%emt 0:10:36]} Bxc5 {[%emt 0:03:32]} 11. Nb3 {[%emt 0:04:45]} Bxe3 {[%emt 0:00:14]} 12. Qxe3 {[%emt 0:00:02]} Qb6 {[%emt 0:02:32]} 13. Qxb6 {[%emt 0:01:34]} axb6 {[%emt 0:00:10]} 14. O-O-O {[%emt 0:04:51]} f6 {[%emt 0:06:09]} 15. exf6 {[%emt 0:00:09]} Nxf6 {[%emt 0:00:07]} 16. g3 {[%emt 0:07:22]} Ng4 {[%emt 0:35:23]} 17. Rd2 {[%emt 0:00:29]} e5 {[%emt 0:01:59]} 18. Nxd5 {[%emt 0:06:53]} exf4 {[%emt 0:14:05]} 19. Nxb6 {[%emt 0:04:30]} Bf5 {[%emt 0:12:01]} 20. Bc4+ {[%emt 0:02:36]} Kh8 {[%emt 0:00:08]} 21. Nxa8 {[%emt 0:00:02]} Rxa8 {[%emt 0:01:02]} 22. gxf4 {[%emt 0:02:37]} Rxa2 {[%emt 0:02:31]} 23. Kb1 {[%emt 0:02:26]} Ra8 {[%emt 0:01:18]} 24. Nd4 {[%emt 0:00:16]} Nxd4 {[%emt 0:00:38]} 25. Rxd4 {[%emt 0:00:01]} g6 {[%emt 0:01:22]} 26. Bd3 {[%emt 0:00:22]} Be6 {[%emt 0:00:30]} 27. b3 {[%emt 0:01:01]} Rf8 {[%emt 0:03:21]} 28. Re1 {[%emt 0:00:34]} Bc8 {[%emt 0:00:19]} 29. Rc4 {[%emt 0:03:59]} Nf6 {[%emt 0:01:34]} 30. Re5 {[%emt 0:02:00]} 1-0

[Event "Vienna Chess Open 2019"]
[Site "Vienna"]
[Date "2019.08.19"]
[Round "4.1"]
[White "Valsecchi, Alessio"]
[Black "Vardaan Nagpal"]
[Result "1/2-1/2"]
[ECO "C42"]
[WhiteElo "2494"]
[BlackElo "2343"]
[Annotator "ChessBase"]
[PlyCount "78"]
[EventDate "2019.08.17"]
[EventType "swiss"]
[EventCountry "AUT"]
[SourceTitle "playchess.com"]
[Source "ChessBase"]
[SourceQuality "1"]
[TimeControl "40/5400+30:1800+30"]

1. e4 {[%emt 0:03:50]} e5 {[%emt 0:00:00]} 2. Nf3 {[%emt 0:00:07]} Nf6 {[%emt 0:00:00]} 3. Nxe5 {[%emt 0:02:40]} d6 {[%emt 0:00:00]} 4. Nf3 {[%emt 0:00:15]} Nxe4 {[%emt 0:00:00]} 5. Bd3 {[%emt 0:00:13]} Nf6 {[%emt 0:05:15]} 6. O-O {[%emt 0:00:11]} Be7 {[%emt 0:00:06]} 7. h3 {[%emt 0:00:08]} O-O {[%emt 0:02:40]} 8. c3 {[%emt 0:00:06]} Re8 {[%emt 0:10:09]} 9. Bc2 {[%emt 0:00:22]} Nbd7 {[%emt 0:00:16]} 10. d4 {[%emt 0:00:23]} Bf8 {[%emt 0:02:57]} 11. Bg5 {[%emt 0:03:32]} g6 {[%emt 0:05:52]} 12. Nbd2 {[%emt 0:01:25]} Bg7 {[%emt 0:00:23]} 13. Nh2 {[%emt 0:06:07]} h6 {[%emt 0:13:52]} 14. Bh4 {[%emt 0:00:21]} d5 {[%emt 0:07:27]} 15. Ng4 {[%emt 0:11:53]} g5 {[%emt 0:00:43]} 16. Bg3 {[%emt 0:00:38]} Nxg4 {[%emt 0:00:34]} 17. hxg4 {[%emt 0:01:17]} Nf8 {[%emt 0:07:38]} 18. Qf3 {[%emt 0:11:12]} Be6 {[%emt 0:08:36]} 19. Rfe1 {[%emt 0:00:23]} Qd7 {[%emt 0:01:58]} 20. Bf5 {[%emt 0:00:26]} c6 {[%emt 0:06:01]} 21. Nf1 {[%emt 0:02:22]} Bxf5 {[%emt 0:01:12]} 22. gxf5 {[%emt 0:00:32]} f6 {[%emt 0:00:19]} 23. Bh2 {[%emt 0:05:52]} Rxe1 {[%emt 0:01:46]} 24. Rxe1 {[%emt 0:00:03]} Re8 {[%emt 0:00:04]} 25. Re3 {[%emt 0:00:20]} Rxe3 {[%emt 0:05:45]} 26. Nxe3 {[%emt 0:01:59]} Qe8 {[%emt 0:01:36]} 27. g4 {[%emt 0:01:57]} Nd7 {[%emt 0:04:17]} 28. b3 {[%emt 0:02:25]} Nb6 {[%emt 0:00:52]} 29. a4 {[%emt 0:05:24]} Bf8 {[%emt 0:01:10]} 30. a5 {[%emt 0:03:51]} Nc8 {[%emt 0:00:08]} 31. c4 {[%emt 0:00:57]} dxc4 {[%emt 0:00:09]} 32. bxc4 {[%emt 0:01:22]} Bd6 {[%emt 0:02:01]} 33. c5 {[%emt 0:09:02]} Bxh2+ {[%emt 0:01:58]} 34. Kxh2 {[%emt 0:00:01]} Kf7 {[%emt 0:00:36]} 35. Kg1 {[%emt 0:09:14]} Qd7 {[%emt 0:03:22]} 36. Qe4 {[%emt 0:00:30]} Ne7 {[%emt 0:00:58]} 37. Nc4 {[%emt 0:00:18]} Nd5 {[%emt 0:00:26]} 38. Nd6+ {[%emt 0:04:30]} Kf8 {[%emt 0:00:01]} 39. Nc4 {[%emt 0:07:34]} Nc3 {[%emt 0:02:56]} 1/2-1/2

[Event "Vienna Chess Open 2019"]
[Site "Vienna"]
[Date "2019.08.19"]
[Round "4.2"]
[White "Kowalski, Igor"]
[Black "Cvitan, Ognjen"]
[Result "1/2-1/2"]
[ECO "D37"]
[WhiteElo "2493"]
[BlackElo "2493"]
[Annotator "ChessBase"]
[PlyCount "40"]
[EventDate "2019.08.17"]
[EventType "swiss"]
[EventCountry "AUT"]
[SourceTitle "playchess.com"]
[Source "ChessBase"]
[SourceQuality "1"]
[TimeControl "40/5400+30:1800+30"]

1. d4 {[%emt 0:00:00]} Nf6 {[%emt 0:00:38]} 2. c4 {[%emt 0:00:00]} e6 {[%emt 0:01:10]} 3. Nf3 {[%emt 0:00:00]} d5 {[%emt 0:02:08]} 4. Nc3 {[%emt 0:00:00]} Be7 {[%emt 0:01:59]} 5. Bf4 {[%emt 0:00:00]} O-O {[%emt 0:00:19]} 6. e3 {[%emt 0:00:00]} c5 {[%emt 0:00:17]} 7. dxc5 {[%emt 0:00:09]} Bxc5 {[%emt 0:00:08]} 8. Qc2 {[%emt 0:01:56]} Nc6 {[%emt 0:01:45]} 9. a3 {[%emt 0:00:06]} Qa5 {[%emt 0:00:34]} 10. Nd2 {[%emt 0:00:08]} Be7 {[%emt 0:07:15]} 11. Nb3 {[%emt 0:00:26]} Qb6 {[%emt 0:05:32]} 12. O-O-O {[%emt 0:01:34]} Bd7 {[%emt 0:07:39]} 13. g4 {[%emt 0:10:54]} Rfc8 {[%emt 0:04:05]} 14. g5 {[%emt 0:03:50]} Nh5 {[%emt 0:02:04]} 15. cxd5 {[%emt 0:04:22]} Nxf4 {[%emt 0:02:36]} 16. exf4 {[%emt 0:00:53]} Na5 {[%emt 0:00:17]} 17. Nxa5 {[%emt 0:01:09]} Qxa5 {[%emt 0:00:05]} 18. Rd3 {[%emt 0:10:56]} Bd6 {[%emt 0:13:06]} 19. Qd2 {[%emt 0:02:37]} e5 {[%emt 0:00:15]} 20. Bh3 {[%emt 0:00:39]} Bxh3 {[%emt 0:05:33]} 1/2-1/2

[Event "Vienna Chess Open 2019"]
[Site "Vienna"]
[Date "2019.08.19"]
[Round "4.2"]
[White "Ravi, Teja S."]
[Black "Nasuta, Grzegorz"]
[Result "1-0"]
[ECO "D11"]
[WhiteElo "2420"]
[BlackElo "2533"]
[Annotator "ChessBase"]
[PlyCount "73"]
[EventDate "2019.08.17"]
[EventType "swiss"]
[EventCountry "AUT"]
[SourceTitle "playchess.com"]
[Source "ChessBase"]
[SourceQuality "1"]
[TimeControl "40/5400+30:1800+30"]

1. d4 {[%emt 0:00:00]} d5 {[%emt 0:00:00]} 2. c4 {[%emt 0:00:30]} c6 {[%emt 0:00:00]} 3. Nf3 {[%emt 0:01:58]} Nf6 {[%emt 0:00:01]} 4. e3 {[%emt 0:00:16]} Bg4 {[%emt 0:00:07]} 5. h3 {[%emt 0:00:09]} Bh5 {[%emt 0:00:05]} 6. g4 {[%emt 0:00:06]} Bg6 {[%emt 0:00:06]} 7. Ne5 {[%emt 0:00:03]} Nbd7 {[%emt 0:04:38]} 8. Nxg6 {[%emt 0:00:11]} hxg6 {[%emt 0:00:06]} 9. Qb3 {[%emt 0:01:16]} e6 {[%emt 0:11:37]} 10. Qxb7 {[%emt 0:02:48]} Nxg4 {[%emt 0:02:46]} 11. Qxc6 {[%emt 0:06:56]} Rc8 {[%emt 0:25:30]} 12. Qa6 {[%emt 0:02:57]} dxc4 {[%emt 0:03:21]} 13. Nc3 {[%emt 0:01:23]} Rh5 {[%emt 0:16:22]} 14. Qxa7 {[%emt 0:15:45]} Ra5 {[%emt 0:12:26]} 15. Qb7 {[%emt 0:00:09]} Ngf6 {[%emt 0:00:04]} 16. Qf3 {[%emt 0:04:45]} Qb6 {[%emt 0:01:33]} 17. Bg2 {[%emt 0:01:10]} e5 {[%emt 0:05:12]} 18. O-O {[%emt 0:02:09]} exd4 {[%emt 0:05:01]} 19. exd4 {[%emt 0:01:06]} Bd6 {[%emt 0:06:24]} 20. a4 {[%emt 0:06:07]} Rf5 {[%emt 0:03:33]} 21. Qb7 {[%emt 0:00:35]} Qxb7 {[%emt 0:00:56]} 22. Bxb7 {[%emt 0:00:02]} Rb8 {[%emt 0:00:05]} 23. Ba6 {[%emt 0:00:40]} Bf4 {[%emt 0:00:59]} 24. Re1+ {[%emt 0:03:31]} Kf8 {[%emt 0:00:01]} 25. Re2 {[%emt 0:00:18]} Bxc1 {[%emt 0:00:23]} 26. Rxc1 {[%emt 0:00:01]} Nb6 {[%emt 0:00:19]} 27. Bb5 {[%emt 0:02:53]} Rd8 {[%emt 0:01:19]} 28. Rce1 {[%emt 0:01:43]} Kg8 {[%emt 0:00:15]} 29. d5 {[%emt 0:01:58]} Kh7 {[%emt 0:00:46]} 30. Re5 {[%emt 0:00:34]} Rf4 {[%emt 0:00:29]} 31. a5 {[%emt 0:01:43]} Nbxd5 {[%emt 0:00:29]} 32. Rd1 {[%emt 0:00:44]} Nxc3 {[%emt 0:00:32]} 33. Rxd8 {[%emt 0:00:05]} Nce4 {[%emt 0:00:02]} 34. Rd4 {[%emt 0:01:02]} Rxf2 {[%emt 0:00:52]} 35. Rdxe4 {[%emt 0:00:08]} Nxe4 {[%emt 0:00:08]} 36. Rxe4 {[%emt 0:00:03]} Rxb2 {[%emt 0:00:36]} 37. Bxc4 {[%emt 0:00:02]} 1-0

[Event "Vienna Chess Open 2019"]
[Site "Vienna"]
[Date "2019.08.19"]
[Round "4.2"]
[White "Schwabeneder, Florian"]
[Black "Lechner, Daniel"]
[Result "1-0"]
[ECO "A08"]
[WhiteElo "2404"]
[BlackElo "2404"]
[Annotator "NA"]
[PlyCount "51"]
[EventDate "2019.08.17"]
[EventType "swiss"]
[EventCountry "AUT"]
[SourceTitle "playchess.com"]
[Source "ChessBase"]
[SourceQuality "1"]
[TimeControl "40/5400+30:1800+30"]

1. Nf3 {[%emt 0:00:00]} c5 {[%emt 0:00:00]} 2. g3 {[%emt 0:01:12]} d5 {[%emt 0:03:03]} 3. Bg2 {[%emt 0:01:17]} Nf6 {[%emt 0:00:10]} 4. O-O {[%emt 0:01:31]} e6 {[%emt 0:00:30]} 5. c4 {[%emt 0:03:52]} d4 {[%emt 0:00:41]} 6. e3 {[%emt 0:00:16]} Nc6 {[%emt 0:00:31]} 7. exd4 {[%emt 0:00:09]} cxd4 {[%emt 0:00:05]} 8. d3 {[%emt 0:00:49]} Bd6 {[%emt 0:03:49]} 9. Na3 {[%emt 0:06:50]} O-O {[%emt 0:06:04]} 10. Nc2 {[%emt 0:12:26]} e5 {[%emt 0:06:14]} 11. b4 {[%emt 0:01:42]} Re8 {[%emt 0:15:48]} 12. b5 {[%emt 0:09:22]} Ne7 {[%emt 0:16:18]} 13. Re1 {[%emt 0:15:01]} Nd7 {[%emt 0:11:34]} 14. Ng5 {[%emt 0:06:57]} Nf8 {[%emt 0:04:56]} 15. a4 {[%emt 0:12:08]} Rb8 {[%emt 0:01:45]} 16. a5 {[%emt 0:01:16]} Ne6 {[%emt 0:02:30]} 17. Nxe6 {[%emt 0:08:35]} Bxe6 {[%emt 0:00:08]} 18. Bd2 {[%emt 0:01:50]} Qd7 {[%emt 0:07:23]} 19. Nb4 {[%emt 0:01:39]} f6 {[%emt 0:03:29]} 20. Qa4 {[%emt 0:02:38]} Kf8 {[%emt 0:03:35]} 21. a6 {[%emt 0:00:41]} b6 {[%emt 0:00:29]} 22. Nc6 {[%emt 0:00:18]} Rbc8 {[%emt 0:02:34]} 23. Bb4 {[%emt 0:01:30]} Rc7 {[%emt 0:02:44]} 24. Rac1 {[%emt 0:03:21]} Bxb4 {[%emt 0:02:45]} 25. Qxb4 {[%emt 0:00:09]} Kf7 {[%emt 0:00:12]} 26. Rxe5 {[%emt 0:01:56]} 1-0

[Event "Vienna Chess Open 2019"]
[Site "Vienna"]
[Date "2019.08.19"]
[Round "4.3"]
[White "Shengelia, David"]
[Black "Bick, Gabriel"]
[Result "0-1"]
[ECO "A45"]
[WhiteElo "2523"]
[BlackElo "2375"]
[Annotator "ChessBase"]
[PlyCount "48"]
[EventDate "2019.08.17"]
[EventType "swiss"]
[EventCountry "AUT"]
[SourceTitle "playchess.com"]
[Source "ChessBase"]
[SourceQuality "1"]
[TimeControl "40/5400+30:1800+30"]

1. d4 {[%emt 0:00:00]} Nf6 {[%emt 0:00:00]} 2. g3 {[%emt 0:00:10]} d5 {[%emt 0:00:07]} 3. Bg2 {[%emt 0:00:34]} e6 {[%emt 0:00:23]} 4. Nf3 {[%emt 0:00:21]} b5 {[%emt 0:00:45]} 5. O-O {[%emt 0:01:23]} Bb7 {[%emt 0:00:50]} 6. c3 {[%emt 0:11:19]} c5 {[%emt 0:06:26]} 7. Bg5 {[%emt 0:17:22]} Nbd7 {[%emt 0:14:04]} 8. Nbd2 {[%emt 0:07:35]} Be7 {[%emt 0:13:38]} 9. a4 {[%emt 0:09:06]} a6 {[%emt 0:10:17]} 10. dxc5 {[%emt 0:08:30]} Nxc5 {[%emt 0:01:52]} 11. axb5 {[%emt 0:00:23]} axb5 {[%emt 0:00:10]} 12. Nd4 {[%emt 0:02:03]} Qb6 {[%emt 0:05:04]} 13. Rxa8+ {[%emt 0:13:21]} Bxa8 {[%emt 0:00:02]} 14. b4 {[%emt 0:00:28]} Na4 {[%emt 0:06:47]} 15. Qb3 {[%emt 0:00:07]} O-O {[%emt 0:02:23]} 16. Ra1 {[%emt 0:00:16]} Rc8 {[%emt 0:26:38]} 17. Nxb5 {[%emt 0:01:12]} Ng4 {[%emt 0:05:25]} 18. Bxe7 {[%emt 0:04:35]} Qxf2+ {[%emt 0:00:03]} 19. Kh1 {[%emt 0:00:04]} d4 {[%emt 0:00:04]} 20. Nf3 {[%emt 0:00:39]} Ne3 {[%emt 0:01:34]} 21. Rg1 {[%emt 0:08:33]} Nxc3 {[%emt 0:03:08]} 22. Nbxd4 {[%emt 0:05:17]} Nxe2 {[%emt 0:00:19]} 23. Nxe2 {[%emt 0:04:00]} Bxf3 {[%emt 0:00:25]} 24. Nf4 {[%emt 0:02:53]} Rc1 {[%emt 0:00:15]} 0-1

[Event "Vienna Chess Open 2019"]
[Site "Vienna"]
[Date "2019.08.19"]
[Round "4.3"]
[White "Blohberger, Felix"]
[Black "Zamengo, Fulvio"]
[Result "1-0"]
[ECO "A05"]
[WhiteElo "2467"]
[BlackElo "2342"]
[Annotator "ChessBase"]
[PlyCount "77"]
[EventDate "2019.08.17"]
[EventType "swiss"]
[EventCountry "AUT"]
[SourceTitle "playchess.com"]
[Source "ChessBase"]
[SourceQuality "1"]
[TimeControl "40/5400+30:1800+30"]

1. Nf3 {[%emt 0:00:00]} Nf6 {[%emt 0:05:27]} 2. g3 {[%emt 0:00:00]} b6 {[%emt 0:00:57]} 3. Bg2 {[%emt 0:00:00]} Bb7 {[%emt 0:00:08]} 4. c4 {[%emt 0:00:03]} c5 {[%emt 0:02:08]} 5. O-O {[%emt 0:00:40]} g6 {[%emt 0:00:25]} 6. b3 {[%emt 0:00:13]} Bg7 {[%emt 0:00:07]} 7. Bb2 {[%emt 0:00:05]} O-O {[%emt 0:00:09]} 8. d4 {[%emt 0:01:18]} d5 {[%emt 0:02:23]} 9. cxd5 {[%emt 0:18:35]} cxd4 {[%emt 0:07:28]} 10. Qxd4 {[%emt 0:03:31]} Qxd5 {[%emt 0:01:21]} 11. Qxd5 {[%emt 0:01:08]} Bxd5 {[%emt 0:05:10]} 12. Nc3 {[%emt 0:09:08]} Bc6 {[%emt 0:04:55]} 13. Rac1 {[%emt 0:02:30]} Nbd7 {[%emt 0:11:57]} 14. Ba3 {[%emt 0:03:46]} Nc5 {[%emt 0:16:50]} 15. Bxc5 {[%emt 0:06:53]} bxc5 {[%emt 0:00:07]} 16. Ne5 {[%emt 0:06:14]} Bxg2 {[%emt 0:00:14]} 17. Kxg2 {[%emt 0:00:04]} Rfc8 {[%emt 0:02:02]} 18. Nc4 {[%emt 0:03:35]} Ne8 {[%emt 0:12:43]} 19. Na4 {[%emt 0:01:44]} Rc7 {[%emt 0:00:06]} 20. Rc2 {[%emt 0:01:04]} Rac8 {[%emt 0:03:19]} 21. Rfc1 {[%emt 0:03:12]} Bf8 {[%emt 0:00:07]} 22. Ne5 {[%emt 0:16:40]} e6 {[%emt 0:00:06]} 23. Nd3 {[%emt 0:01:36]} Nf6 {[%emt 0:00:11]} 24. Naxc5 {[%emt 0:01:19]} Nd7 {[%emt 0:04:47]} 25. b4 {[%emt 0:00:26]} a5 {[%emt 0:04:18]} 26. a3 {[%emt 0:00:06]} axb4 {[%emt 0:00:06]} 27. axb4 {[%emt 0:00:06]} Nf6 {[%emt 0:05:43]} 28. Ne1 {[%emt 0:05:12]} Nd5 {[%emt 0:01:11]} 29. Na6 {[%emt 0:00:36]} Rxc2 {[%emt 0:06:45]} 30. Rxc2 {[%emt 0:00:06]} Ra8 {[%emt 0:00:02]} 31. b5 {[%emt 0:00:44]} Nb4 {[%emt 0:02:40]} 32. Nxb4 {[%emt 0:01:04]} Bxb4 {[%emt 0:00:01]} 33. Nd3 {[%emt 0:00:10]} Bd6 {[%emt 0:00:01]} 34. Rc6 {[%emt 0:02:52]} Rd8 {[%emt 0:00:05]} 35. b6 {[%emt 0:01:16]} Kf8 {[%emt 0:00:36]} 36. b7 {[%emt 0:00:22]} Ke7 {[%emt 0:00:36]} 37. Rc8 {[%emt 0:00:06]} g5 {[%emt 0:02:21]} 38. Nb4 {[%emt 0:02:53]} Rd7 {[%emt 0:00:44]} 39. b8=Q 1-0